bitfinex-derivatives/quotes_SOLF0:USTF0_20250409
["timestamp","ask_amount","ask_price","bid_price","bid_amount"]
[1744230727323,0.05855518,118.86,118.84,16.60338104]
[1744230728228,8.4139,118.9,118.84,16.60338104]
[1744230728530,4.3026,118.91,118.84,16.60338104]
[1744230728733,8.4147,118.89,118.84,16.60338104]
[1744230728926,4.3026,118.91,118.84,16.60338104]
[1744230729120,8.4155,118.88,118.84,16.60338104]
[1744230729325,0.06082261,118.89,118.86,0.05668187]
[1744230729631,0.06082261,118.89,118.86,62.05668187]
[1744230730157,8.415,118.88,118.86,62.05668187]
[1744230730430,8.415,118.88,118.86,0.05668187]
[1744230732637,8.4157,118.87,118.86,0.05668187]
[1744230734132,7.4816,118.87,118.86,0.05668187]
[1744230734325,375.60338104,118.97,118.86,35.37668187]
[1744230734525,6.6531,118.95,118.88,16.60338104]
[1744230735020,8.4133,118.91,118.88,16.60338104]
[1744230735224,6.6531,118.95,118.88,16.60338104]
[1744230735427,8.4136,118.9,118.88,16.66409001]
[1744230736030,0.05402933,118.91,118.88,16.66409001]
[1744230736222,0.05402933,118.91,118.89,35.32]
[1744230736429,0.05402933,118.91,118.9,16.60338104]
[1744230736631,4.3945,118.95,118.9,16.60338104]
[1744230736837,4.3945,118.95,118.92,16.60338104]
[1744230737230,4.3945,118.95,118.92,51.92338104]
[1744230737431,2.3019,118.99,118.92,51.92338104]
[1744230737631,4.4629,118.99,118.92,51.92338104]
[1744230737827,8.4094,118.96,118.94,0.05812708]
[1744230738635,8.41,118.95,118.94,0.05812708]
[1744230739127,16.60338104,118.96,118.88,51.92338104]
[1744230739634,8.412,118.93,118.88,51.92338104]
[1744230740237,0.05409486,118.92,118.89,0.05493889]
[1744230740539,0.05409486,118.92,118.9,16.60338104]
[1744230740729,35.32,118.98,118.91,35.3]
[1744230740935,8.4101,118.95,118.91,35.3]
[1744230741133,35.32,118.98,118.91,35.3]
[1744230741839,35.32,118.98,118.93,0.05740496]
[1744230741840,8.4678763,118.96,118.93,0.05740496]
[1744230742144,8.4102,118.95,118.93,0.05740496]
[1744230742636,0.0578763,118.96,118.93,0.05740496]
[1744230743933,8.4107,118.94,118.93,0.05740496]
[1744230744945,8.4104,118.95,118.93,0.05740496]
[1744230745443,0.0578763,118.96,118.93,0.05740496]
[1744230745940,8.4103,118.95,118.93,0.05740496]
[1744230746137,0.0578763,118.96,118.93,0.05740496]
[1744230747344,8.4107,118.94,118.93,0.05740496]
[1744230747540,25.00338104,118.94,118.86,16.60338104]
[1744230747740,16.60338104,118.92,118.85,36.76323004]
[1744230747946,8.4148,118.89,118.85,36.76323004]
[1744230748643,0.0611702,118.88,118.86,0.05326978]
[1744230749344,8.4761702,118.88,118.86,0.05326978]
[1744230749738,0.0611702,118.88,118.86,0.05326978]
[1744230756047,0.0611702,118.88,118.86,16.65665082]
[1744230756754,0.0611702,118.88,118.87,62.0]
[1744230758161,2.1076,118.93,118.87,62.0]
[1744230758360,8.414,118.9,118.85,51.90338104]
[1744230759262,0.06098277,118.89,118.86,0.06144646]
[1744230761357,0.06098277,118.89,118.87,62.0]
[1744230763061,0.06098277,118.89,118.86,0.06144646]
[1744230765162,8.47548277,118.89,118.86,0.06144646]
[1744230766161,8.47548277,118.89,118.86,62.06144646]
[1744230766356,8.47548277,118.89,118.86,0.06144646]
[1744230766560,0.06098277,118.89,118.86,0.06144646]
[1744230769263,0.06098277,118.89,118.86,62.06144646]
[1744230771771,0.06098277,118.89,118.87,16.60338104]
[1744230773262,0.06098277,118.89,118.88,45.83486846]
[1744230774870,0.06098277,118.89,118.88,107.83486846]
[1744230775764,0.06098277,118.89,118.88,97.24]
[1744230775970,0.06098277,118.89,118.88,45.83486846]
[1744230776172,0.06098277,118.89,118.88,10.59486846]
[1744230777771,0.06098277,118.89,118.86,35.30144646]
[1744230777966,0.06098277,118.89,118.86,45.89631492]
[1744230778768,0.06098277,118.89,118.86,107.89631492]
[1744230779663,0.06098277,118.89,118.88,10.59486846]
[1744230780782,0.06098277,118.89,118.86,97.30144646]
[1744230780981,0.06098277,118.89,118.87,10.59486846]
[1744230781175,0.06098277,118.89,118.88,10.59486846]
[1744230781477,0.06098277,118.89,118.87,10.59486846]
[1744230782774,0.06098277,118.89,118.86,107.89631492]
[1744230782974,0.06098277,118.89,118.86,97.30144646]
[1744230783879,8.47558277,118.89,118.86,97.30144646]
[1744230784682,0.06098277,118.89,118.86,97.30144646]
[1744230785578,0.06098277,118.89,118.88,10.59486846]
[1744230786283,0.06098277,118.89,118.86,97.30144646]
[1744230786476,0.06098277,118.89,118.87,10.59486846]
[1744230786877,0.06098277,118.89,118.86,97.30144646]
[1744230787883,0.06098277,118.89,118.86,35.30144646]
[1744230788085,12.93325123,118.89,118.86,35.30144646]
[1744230788484,2.172,118.88,118.86,35.30144646]
[1744230789277,10.5876,118.88,118.86,35.30144646]
[1744230789477,2.172,118.88,118.86,35.30144646]
[1744230790590,19.01056846,118.87,118.86,0.06144646]
[1744230790883,19.01056846,118.87,118.83,35.2]
[1744230790884,10.59486846,118.87,118.81,35.2]
[1744230791079,2.172,118.88,118.82,10.59486846]
[1744230791285,2.172,118.88,118.84,10.59486846]
[1744230791887,0.0611455,118.87,118.85,0.05883513]
[1744230793189,0.0611455,118.87,118.85,10.65370359]
[1744230796094,10.59486846,118.94,118.86,72.59486846]
[1744230796288,16.98036846,118.94,118.89,10.59486846]
[1744230796792,8.4117,118.93,118.89,10.59486846]
[1744230797193,0.06326038,118.92,118.9,0.05358948]
[1744230797994,8.47546038,118.92,118.9,0.05358948]
[1744230798400,0.06326038,118.92,118.9,0.05358948]
[1744230798899,0.06326038,118.92,118.9,10.64845794]
[1744230799194,0.06326038,118.92,118.9,0.05358948]
[1744230800897,8.47556038,118.92,118.9,0.05358948]
[1744230801298,0.06326038,118.92,118.9,0.05358948]
[1744230803299,8.47546038,118.92,118.9,0.05358948]
[1744230803898,0.06326038,118.92,118.9,0.05358948]
[1744230805199,8.47556038,118.92,118.9,0.05358948]
[1744230806596,8.4129,118.91,118.9,0.05358948]
[1744230806799,0.06326038,118.92,118.9,0.05358948]
[1744230807403,19.00776846,118.91,118.9,0.05358948]
[1744230807595,19.00776846,118.91,118.87,35.2]
[1744230807901,8.4136,118.9,118.87,35.2]
[1744230808104,10.59486846,118.89,118.87,35.2]
[1744230808295,10.59486846,118.89,118.86,62.0]
[1744230808296,10.59486846,118.88,118.84,47.23846774]
[1744230808603,10.59486846,118.87,118.84,35.18]
[1744230808797,10.59486846,118.86,118.85,0.0630385]
[1744230808992,10.59486846,118.86,118.81,45.77486846]
[1744230809195,2.2393,118.86,118.82,616.31486846]
[1744230809486,2.2393,118.86,118.83,10.59486846]
[1744230810202,2.2393,118.86,118.83,10.65261152]
[1744230811195,2.2393,118.86,118.84,62.0]
[1744230812007,2.2393,118.86,118.83,10.65261152]
[1744230813303,2.2393,118.86,118.83,0.05774306]
[1744230813506,2.2393,118.86,118.83,10.65261152]
[1744230814202,0.06081873,118.87,118.84,10.59486846]
[1744230814420,0.06081873,118.87,118.84,35.14]
[1744230815006,0.06081873,118.87,118.85,62.0]
[1744230815308,8.47681873,118.87,118.85,62.0]
[1744230815809,0.06081873,118.87,118.85,62.0]
[1744230816303,8.47661873,118.87,118.85,62.0]
[1744230816606,8.47661873,118.87,118.84,35.14]
[1744230817706,0.06081873,118.87,118.84,35.14]
[1744230818209,10.65568719,118.87,118.83,10.65261152]
[1744230819200,0.06081873,118.87,118.83,10.65261152]
[1744230819401,0.06081873,118.87,118.84,62.0]
[1744230820410,8.4169,118.86,118.84,62.0]
[1744230821711,0.06081873,118.87,118.83,0.05774306]
[1744230823115,8.4175,118.85,118.83,0.05774306]
[1744230823815,10.65568719,118.87,118.83,0.05774306]
[1744230824314,8.4169,118.86,118.83,0.05774306]
[1744230824515,8.4169,118.86,118.83,10.65261152]
[1744230824715,8.4169,118.86,118.83,72.65261152]
[1744230825316,8.47691873,118.87,118.83,72.65261152]
[1744230825618,0.06081873,118.87,118.83,72.65261152]
[1744230825810,8.4165,118.86,118.83,72.65261152]
[1744230826011,0.06081873,118.87,118.84,10.59486846]
[1744230826314,8.47711873,118.87,118.84,10.59486846]
[1744230827819,8.4164,118.86,118.84,10.59486846]
[1744230828019,8.4164,118.86,118.83,72.65261152]
[1744230829722,8.47691873,118.87,118.83,72.65261152]
[1744230831520,0.06081873,118.87,118.85,10.59486846]
[1744230831710,4.4229,118.91,118.85,10.59486846]
[1744230832022,8.4125,118.92,118.89,10.59486846]
[1744230832522,8.4125,118.92,118.9,10.59486846]
[1744230832718,8.4125,118.92,118.89,10.59486846]
[1744230832917,8.47336697,118.92,118.9,0.05546717]
[1744230833423,0.06086697,118.92,118.9,0.05546717]
[1744230833917,8.47336697,118.92,118.9,0.05546717]
[1744230834623,0.06086697,118.92,118.9,10.65033563]
[1744230834922,0.06086697,118.92,118.91,10.59486846]
[1744230836316,0.06086697,118.92,118.9,0.05546717]
[1744230836724,8.47336697,118.92,118.9,0.05546717]
[1744230838924,0.06086697,118.92,118.9,0.05546717]
[1744230839127,0.06086697,118.92,118.9,10.65033563]
[1744230840934,0.06086697,118.92,118.91,10.59486846]
[1744230843131,0.06086697,118.92,118.9,0.05546717]
[1744230843835,8.4129,118.91,118.9,0.05546717]
[1744230844530,8.47336697,118.92,118.9,0.05546717]
[1744230845338,8.4129,118.91,118.9,0.05546717]
[1744230845936,8.47366697,118.92,118.9,0.05546717]
[1744230846344,0.06086697,118.92,118.9,0.05546717]
[1744230846646,8.4129,118.91,118.9,0.05546717]
[1744230846939,10.59486846,118.91,118.85,12.05840618]
[1744230847148,10.59486846,118.88,118.84,35.06]
[1744230847333,10.59486846,118.86,118.81,45.65486846]
[1744230848039,10.59486846,118.84,118.82,0.05945934]
[1744230848235,10.64796984,118.85,118.82,0.05945934]
[1744230848639,0.05310138,118.85,118.82,0.05945934]
[1744230848830,8.47060138,118.85,118.82,0.05945934]
[1744230849029,0.05310138,118.85,118.82,10.6543278]
[1744230849550,0.05310138,118.85,118.83,10.59486846]
[1744230849848,0.05310138,118.85,118.84,10.59486846]
[1744230850447,0.05310138,118.85,118.84,72.59486846]
[1744230851241,0.05310138,118.85,118.84,62.0]
[1744230857952,0.05310138,118.85,118.82,16.62618478]
[1744230858255,0.05310138,118.85,118.82,0.05945934]
[1744230860555,2.2062,118.9,118.83,16.56672544]
[1744230860750,2.259,118.91,118.87,16.56672544]
[1744230860950,46.17716052,118.92,118.88,62.0]
[1744230861751,0.05881797,118.91,118.89,0.05640078]
[1744230867154,0.05881797,118.91,118.9,35.08]
[1744230867353,0.05881797,118.91,118.9,51.64672544]
[1744230868763,0.05881797,118.91,118.9,113.64672544]
[1744230868965,4.4583,118.96,118.9,113.64672544]
[1744230869960,0.06027167,118.94,118.9,113.64672544]
[1744230870261,0.06027167,118.94,118.92,0.05379184]
[1744230871266,0.06027167,118.94,118.92,16.62051728]
[1744230875065,0.06027167,118.94,118.92,0.05379184]
[1744230879768,0.06027167,118.94,118.93,16.56672544]
[1744230879969,2.092,118.98,118.93,51.58672544]
[1744230880175,4.2233,119.0,118.95,16.56672544]
[1744230880359,4.2233,119.0,118.96,35.02]
[1744230880565,2.1361,119.03,118.99,16.56672544]
[1744230880864,8.4062,119.01,118.96,35.02]
[1744230881070,8.4062,119.01,119.0,0.05893748]
[1744230881267,0.05769968,119.02,118.96,51.58672544]
[1744230881469,0.05769968,119.02,118.99,0.06310744]
[1744230882369,8.4061,119.01,118.99,0.06310744]
[1744230882563,0.05769968,119.02,118.94,35.02]
[1744230882762,3.36500838,119.02,118.95,16.56672544]
[1744230882964,2.1361,119.03,118.97,16.56672544]
[1744230883160,46.62159516,119.05,118.97,51.58672544]
[1744230883364,3.36231844,119.04,118.99,16.56672544]
[1744230883668,0.05725352,119.03,119.0,97.0812131]
[1744230884174,0.05725352,119.03,119.01,16.56672544]
[1744230885275,0.05725352,119.03,119.0,35.0812131]
[1744230885477,0.05725352,119.03,119.01,16.56672544]
[1744230885682,2.1451,119.07,119.01,16.56672544]
[1744230885972,2.1451,119.07,119.03,16.56672544]
[1744230886275,33.13345088,119.04,118.91,16.56672544]
[1744230886462,38.35765139,119.03,118.95,16.56672544]
[1744230886668,35.0,119.06,118.99,16.56672544]
[1744230886867,0.06018876,119.0,118.99,16.56672544]
[1744230887074,2.1451,119.07,118.98,51.56672544]
[1744230887379,18.71182544,119.07,118.99,78.56672544]
[1744230887570,8.4034,119.05,118.99,78.56672544]
[1744230888178,0.0567592,119.03,119.01,0.06378759]
[1744230890578,0.0567592,119.03,119.01,51.63051303]
[1744230892183,2.1597,119.08,119.01,51.63051303]
[1744230892379,2.1597,119.08,119.04,16.56672544]
[1744230892676,2.1597,119.08,119.05,35.0]
[1744230893281,2.21434858,119.08,119.05,35.05714384]
[1744230896479,2.2925,119.14,119.07,16.56672544]
[1744230896683,6.7133,119.14,119.07,16.56672544]
[1744230897272,4.4208,119.14,119.09,16.56672544]
[1744230897482,4.4208,119.14,119.1,38.76]
[1744230897682,0.0633286,119.13,119.1,38.82401622]
[1744230899587,0.0633286,119.13,119.07,38.74]
[1744230899787,0.0633286,119.13,119.07,55.30672544]
[1744230899978,8.4612286,119.13,119.07,55.30672544]
[1744230900285,8.4612286,119.13,119.07,38.74]
[1744230900482,8.3994,119.11,119.07,38.74]
[1744230900693,2.1307,119.12,119.09,0.05616316]
[1744230900987,0.06209034,119.1,119.04,643.66]
[1744230901187,8.4007,119.09,119.04,643.66]
[1744230901388,2.2138,119.08,119.04,643.66]
[1744230902091,8.4571969,119.07,119.05,0.06316052]
[1744230902477,0.0554969,119.07,119.05,0.06316052]
[1744230903081,8.4573969,119.07,119.05,0.06316052]
[1744230903286,0.0554969,119.07,119.05,0.06316052]
[1744230906187,0.0554969,119.07,119.05,16.62988596]
[1744230906388,46.62159516,119.12,119.07,16.56672544]
[1744230906585,46.62159516,119.12,119.08,38.74]
[1744230907390,0.0541985,119.11,119.09,0.06105012]
[1744230908098,8.4532985,119.11,119.09,0.06105012]
[1744230908499,0.0541985,119.11,119.09,0.06105012]
[1744230912195,8.4533985,119.11,119.09,0.06105012]
[1744230912698,0.0541985,119.11,119.09,0.06105012]
[1744230913094,0.0541985,119.11,119.04,621.48672544]
[1744230913294,0.0541985,119.11,119.05,38.74]
[1744230913698,5.25436554,119.1,119.05,38.74]
[1744230913898,7.50496554,119.1,119.05,38.74]
[1744230914289,7.50496554,119.1,119.06,0.06148881]
[1744230915706,21.82109098,119.09,119.01,38.74]
[1744230916094,8.403,119.05,119.01,38.74]
[1744230916296,16.56672544,119.09,119.01,38.74]
[1744230916497,3.35461129,119.08,119.01,38.74]
[1744230916799,0.05387764,119.06,119.03,0.05985393]
[1744230917301,8.45627764,119.06,119.03,0.05985393]
[1744230917505,0.05387764,119.06,119.03,0.05985393]
[1744230917698,60.56900832,119.05,118.88,365.0]
[1744230918000,5.26228288,119.04,118.97,16.56672544]
[1744230918503,2.243,119.03,118.97,16.56672544]
[1744230918705,5.26228288,119.03,118.97,16.56672544]
[1744230918900,0.05503182,119.01,118.99,0.0594329]
[1744230919304,0.05503182,119.01,118.99,16.62615834]
[1744230919603,0.05503182,119.01,118.99,38.7994329]
[1744230919804,0.05503182,119.01,118.99,55.36615834]
[1744230920196,0.05503182,119.01,118.99,16.62615834]
[1744230922800,0.05503182,119.01,118.99,0.0594329]
[1744230923811,12.08181888,119.0,118.93,55.30672544]
[1744230924013,10.92161251,118.99,118.93,38.74]
[1744230924307,23.20223795,118.98,118.9,38.74]
[1744230924510,15.04421251,118.97,118.9,38.74]
[1744230924708,6.63551251,118.96,118.9,38.74]
[1744230925011,6.69116348,118.95,118.92,0.05466607]
[1744230925310,6.6362052,118.94,118.92,0.05466607]
[1744230925511,0.05495828,118.95,118.92,0.05466607]
[1744230925708,10.77772558,118.94,118.92,0.05466607]
[1744230926009,0.05495828,118.95,118.92,0.05466607]
[1744230926907,6.63018859,118.94,118.92,0.05466607]
[1744230927112,0.05495828,118.95,118.92,0.05466607]
[1744230927605,7.29910316,118.94,118.92,0.05466607]
[1744230927806,7.29910316,118.93,118.92,0.05466607]
[1744230928006,0.05495828,118.95,118.92,0.05466607]
[1744230928208,0.05495828,118.95,118.93,16.56672544]
[1744230928604,0.05495828,118.95,118.92,0.05466607]
[1744230935021,4.38726258,118.95,118.92,0.05466607]
[1744230935222,4.5727,118.94,118.92,0.05466607]
[1744230936517,12.9839,118.94,118.92,0.05466607]
[1744230937021,20.89297322,118.93,118.87,38.44]
[1744230937222,8.4132,118.91,118.85,18.03026316]
[1744230938025,8.4132,118.91,118.85,80.03026316]
[1744230938322,0.06369505,118.89,118.87,0.06129541]
[1744230939415,8.47839505,118.89,118.87,0.06129541]
[1744230939926,0.06369505,118.89,118.87,0.06129541]
[1744230942028,0.06369505,118.89,118.84,55.02672544]
[1744230943230,0.06369505,118.89,118.85,0.05480351]
[1744230943628,8.47809505,118.89,118.85,0.05480351]
[1744230943927,38.52369505,118.89,118.85,0.05480351]
[1744230944120,2.2484,118.88,118.85,0.05480351]
[1744230944322,10.6634,118.88,118.85,0.05480351]
[1744230944724,2.2484,118.88,118.85,0.05480351]
[1744230946023,2.0997,118.87,118.8,16.56672544]
[1744230946230,8.4181,118.84,118.77,38.48]
[1744230946430,38.48,118.85,118.77,55.04672544]
[1744230946827,46.8974,118.85,118.77,117.04672544]
[1744230947021,0.06135563,118.82,118.8,0.0251797]
[1744230951933,0.06135563,118.82,118.81,55.04672544]
[1744230952332,0.06135563,118.82,118.81,38.44337138]
[1744230953041,0.06135563,118.82,118.81,55.01009682]
[1744230955637,0.06135563,118.82,118.81,36.22245221]
[1744230957038,0.06135563,118.82,118.81,44.64235221]
[1744230957236,0.06135563,118.82,118.81,28.07562677]
[1744230959336,0.06135563,118.82,118.81,44.64235221]
[1744230967443,0.06135563,118.82,118.81,28.07562677]
[1744230967737,4.22180024,118.82,118.81,4.9521]
[1744230967934,4.22180024,118.82,118.81,1e-08]
[1744230970742,113.11399387,118.82,118.81,1e-08]
[1744230972837,113.11399387,118.82,118.78,37.44]
[1744230973034,4.16044461,118.81,118.75,16.56672544]
[1744230973341,4.16044461,118.8,118.74,54.00672544]
[1744230973541,2.2462,118.81,118.74,54.00672544]
[1744230973742,4.16462267,118.8,118.74,54.00672544]
[1744230973945,10.6666,118.81,118.74,54.00672544]
[1744230974138,0.06140305,118.78,118.74,54.00672544]
[1744230974649,0.06140305,118.78,118.76,16.56672544]
[1744230976437,0.06140305,118.78,118.74,37.44]
[1744230977247,0.06140305,118.78,118.75,16.56672544]
[1744230978145,0.06140305,118.78,118.77,16.56672544]
[1744230978536,0.06140305,118.78,118.74,41.7428]
[1744230978744,0.06140305,118.78,118.74,37.44]
[1744230979449,4.17481557,118.77,118.73,18.03171102]
[1744230979651,4.17453904,118.76,118.73,16.56672544]
[1744230979951,2.36910305,118.78,118.71,55.49214285]
[1744230980153,4.17450188,118.77,118.71,55.49214285]
[1744230980351,4.239009,118.76,118.71,55.49214285]
[1744230980553,0.0645603,118.76,118.71,55.49214285]
[1744230980751,0.0645603,118.76,118.71,38.92541741]
[1744230981054,0.0645603,118.76,118.72,16.56672544]
[1744230983352,4.17789283,118.75,118.71,37.46]
[1744230983552,2.3378603,118.76,118.69,622.46672544]
[1744230983855,4.17449289,118.75,118.69,622.46672544]
[1744230984060,4.23272821,118.74,118.69,622.46672544]
[1744230984352,0.05823532,118.74,118.69,622.46672544]
[1744230985362,0.05823532,118.74,118.68,38.92563342]
[1744230985560,12.59532232,118.73,118.66,16.56672544]
[1744230985860,6.38182232,118.72,118.68,16.56672544]
[1744230986059,0.05531324,118.71,118.68,16.56672544]
[1744230986252,0.05531324,118.71,118.66,16.56672544]
[1744230989469,0.05531324,118.71,118.68,16.56672544]
[1744230989760,0.05531324,118.71,118.69,36.02]
[1744230990861,0.05531324,118.71,118.7,16.56672544]
[1744230996877,2.2296,118.75,118.7,16.56672544]
[1744230997067,2.2733,118.76,118.72,16.56672544]
[1744230997267,2.3004,118.77,118.72,52.58672544]
[1744230997573,2.3026,118.78,118.72,52.58672544]
[1744230997773,13.76429879,118.8,118.74,16.56672544]
[1744230998273,0.05958634,118.78,118.76,0.05531324]
[1744230998462,0.05958634,118.78,118.76,16.62203868]
[1744230999574,11.65539879,118.8,118.76,16.62203868]
[1744230999771,11.65539879,118.8,118.78,16.56672544]
[1744230999973,11.65539879,118.8,118.78,52.58672544]
[1744231000364,2.2122,118.83,118.78,52.58672544]
[1744231000563,0.05367853,118.8,118.78,52.58672544]
[1744231000868,0.05367853,118.8,118.79,0.06317029]
[1744231001678,0.05367853,118.8,118.74,16.56672544]
[1744231002975,0.05367853,118.8,118.76,16.61845473]
[1744231005674,0.05367853,118.8,118.76,52.61845473]
[1744231006676,0.05367853,118.8,118.76,36.05172929]
[1744231008180,0.05367853,118.8,118.76,52.61845473]
[1744231018992,0.05367853,118.8,118.78,16.56672544]
[1744231019196,0.05367853,118.8,118.79,36.0]
[1744231019695,2.2112,118.84,118.79,36.0]
[1744231019995,22.23619879,118.86,118.8,16.56672544]
[1744231019996,4.01614295,118.83,118.8,16.56672544]
[1744231020193,5.92137834,118.85,118.8,16.56672544]
[1744231020395,4.01620684,118.84,118.82,16.56672544]
[1744231020698,11.65539879,118.86,118.82,51.76672544]
[1744231020892,0.05636944,118.84,118.82,51.82742471]
[1744231022993,46.62159516,118.87,118.82,51.82742471]
[1744231023191,46.62159516,118.9,118.84,16.56672544]
[1744231023397,4.01021149,118.89,118.86,16.56672544]
[1744231023601,4.01021149,118.88,118.87,35.2]
[1744231023900,46.62159516,118.9,118.87,35.2]
[1744231024099,93.24319032,118.91,118.89,16.56672544]
[1744231024301,0.06394941,118.9,118.89,16.56672544]
[1744231024495,93.24319032,118.91,118.89,51.76672544]
[1744231025600,81.84281566,118.92,118.89,51.76672544]
[1744231025795,6.5095,118.96,118.91,16.56672544]
[1744231025995,6.5095,118.96,118.92,35.18]
[1744231026297,6.5095,118.96,118.91,16.56672544]
[1744231026806,8.46956419,118.95,118.92,0.05430774]
[1744231027006,0.05916419,118.95,118.92,0.05430774]
[1744231027904,16.62588963,118.95,118.92,0.05430774]
[1744231028104,8.4115,118.93,118.92,0.05430774]
[1744231028497,8.4125,118.92,118.89,35.18]
[1744231028997,8.4118,118.93,118.89,35.18]
[1744231029197,2.2123,118.95,118.89,51.74672544]
[1744231029501,39.4815,118.96,118.91,16.62333505]
[1744231029502,0.053437,118.93,118.91,16.62333505]
[1744231030191,0.053437,118.93,118.92,35.18]
[1744231031398,8.465337,118.93,118.91,0.05660961]
[1744231032202,8.4122,118.92,118.91,0.05660961]
[1744231032603,0.053437,118.93,118.91,0.05660961]
[1744231033003,8.465237,118.93,118.91,0.05660961]
[1744231033309,0.053437,118.93,118.91,0.05660961]
[1744231033508,8.4122,118.92,118.91,0.05660961]
[1744231034315,8.465237,118.93,118.91,0.05660961]
[1744231034811,0.053437,118.93,118.91,0.05660961]
[1744231046210,35.213437,118.93,118.85,622.58672544]
[1744231046421,16.56672544,118.92,118.85,606.02]
[1744231046713,16.56672544,118.92,118.84,36.6235685]
[1744231046908,16.56672544,118.9,118.84,35.16]
[1744231047215,8.4164,118.87,118.84,35.16]
[1744231047417,0.05468977,118.88,118.86,0.05989565]
[1744231047622,0.05468977,118.88,118.81,35.16]
[1744231047914,8.4175,118.85,118.81,35.16]
[1744231048219,35.16,118.9,118.84,16.56672544]
[1744231048514,10.6692,118.91,118.84,51.72672544]
[1744231048716,0.06331757,118.88,118.86,0.05852244]
[1744231049816,0.06331757,118.88,118.87,8.4157]
[1744231051720,8.4157,118.87,118.86,0.05852244]
[1744231051921,0.06331757,118.88,118.81,16.56672544]
[1744231052119,2.2559,118.91,118.85,16.56672544]
[1744231052822,2.2559,118.91,118.87,16.56672544]
[1744231053023,0.05671622,118.89,118.87,16.61815925]
[1744231054826,0.05671622,118.89,118.87,78.61815925]
[1744231055123,0.05671622,118.89,118.87,113.77815925]
[1744231057726,0.05671622,118.89,118.87,51.77815925]
[1744231059026,0.05671622,118.89,118.87,35.21143381]
[1744231061024,8.47121622,118.89,118.87,35.21143381]
[1744231061232,0.05671622,118.89,118.87,0.05143381]
[1744231062530,8.47121622,118.89,118.87,0.05143381]
[1744231062933,8.415,118.88,118.87,0.05143381]
[1744231063530,14.3259475,118.88,118.87,0.05143381]
[1744231064332,17.90390842,118.88,118.87,0.05143381]
[1744231065936,9.48890842,118.88,118.87,0.05143381]
[1744231066137,5.9109475,118.88,118.87,0.05143381]
[1744231066433,0.05671622,118.89,118.87,0.05143381]
[1744231068229,8.47111622,118.89,118.87,0.05143381]
[1744231068425,0.05671622,118.89,118.87,0.05143381]
[1744231074539,0.05671622,118.89,118.87,51.77815925]
[1744231078743,0.05671622,118.89,118.87,35.21143381]
[1744231080843,5.92197305,118.88,118.87,0.05143381]
[1744231081346,9.5038017,118.88,118.84,35.14]
[1744231081545,5.92197305,118.87,118.84,35.14]
[1744231081746,0.05671622,118.89,118.84,35.14]
[1744231081936,9.50458861,118.88,118.84,35.14]
[1744231082136,5.92292399,118.87,118.84,35.14]
[1744231082332,0.05671622,118.89,118.84,35.14]
[1744231082532,9.50572146,118.88,118.84,51.70672544]
[1744231082838,0.05671622,118.89,118.84,51.70672544]
[1744231083043,9.50896144,118.88,118.84,51.70672544]
[1744231083244,0.05671622,118.89,118.84,51.70672544]
[1744231083445,9.51129315,118.88,118.84,51.70672544]
[1744231083738,0.05671622,118.89,118.84,51.70672544]
[1744231083942,9.51151261,118.88,118.84,51.70672544]
[1744231084146,8.47111622,118.89,118.84,51.70672544]
[1744231084346,9.5121758,118.88,118.84,113.70672544]
[1744231084644,5.92762236,118.87,118.84,113.70672544]
[1744231084845,8.47111622,118.89,118.84,113.70672544]
[1744231085044,9.51229999,118.88,118.84,113.70672544]
[1744231085246,5.92772253,118.87,118.84,113.70672544]
[1744231085436,8.47111622,118.89,118.84,113.70672544]
[1744231085634,9.510863,118.88,118.84,113.70672544]
[1744231085839,8.47111622,118.89,118.84,113.70672544]
[1744231086038,9.50944846,118.88,118.84,113.70672544]
[1744231086243,0.05671622,118.89,118.84,113.70672544]
[1744231086435,9.51131471,118.88,118.84,113.70672544]
[1744231086641,0.05671622,118.89,118.84,113.70672544]
[1744231086849,9.51075268,118.88,118.84,113.70672544]
[1744231087149,0.05671622,118.89,118.84,113.70672544]
[1744231087351,9.5109282,118.88,118.84,113.70672544]
[1744231087537,5.92684471,118.87,118.84,113.70672544]
[1744231087736,0.05671622,118.89,118.84,35.14]
[1744231087939,8.4163,118.87,118.82,18.03072494]
[1744231088136,9.51122244,118.86,118.81,35.16]
[1744231088439,5.92746651,118.85,118.81,35.16]
[1744231088640,0.05589304,118.86,118.81,35.16]
[1744231088936,9.51158664,118.85,118.81,35.16]
[1744231089141,0.05589304,118.86,118.81,35.16]
[1744231089342,9.50874279,118.85,118.81,35.16]
[1744231089549,0.05589304,118.86,118.81,35.16]
[1744231089747,9.50933557,118.85,118.81,35.16]
[1744231089951,0.05589304,118.86,118.81,35.16]
[1744231090152,9.50917502,118.85,118.81,35.16]